[Event "Titled Tuesday Blitz April 11 Early 2023"]
[White "Vysochin, Spartak"]
[Black "Cori T., Deysi"]
[WhiteFideId "14103516"]
[BlackFideId "3801934"]
[WhiteElo "2367"]
[BlackElo "2292"]
[Result "0-1"]
[Round "11"]
[TimeControl "180+2"]
[Date "2023.04.11"]
[WhiteClock "0:00:05"]
[BlackClock "0:00:05"]

1. e4 {[%clk 0:02:55]}  e6 {[%clk 0:03:00]} 2. d4 {[%clk 0:02:52]}  d5 {[%clk 0:03:00]} 3. exd5 {[%clk 0:02:53]}  exd5 {[%clk 0:03:00]} 4. Nf3 {[%clk 0:02:53]}  Bd6 {[%clk 0:02:56]} 5. c4 {[%clk 0:02:52]}  c6 {[%clk 0:02:56]} 6. Nc3 {[%clk 0:02:51]}  Ne7 {[%clk 0:02:56]} 7. Bd3 {[%clk 0:02:51]}  O-O {[%clk 0:02:55]} 8. O-O {[%clk 0:02:51]}  dxc4 {[%clk 0:02:54]} 9. Bxc4 {[%clk 0:02:50]}  Bg4 {[%clk 0:02:55]} 10. h3 {[%clk 0:02:50]}  Bh5 {[%clk 0:02:54]} 11. g4 {[%clk 0:02:41]}  Bg6 {[%clk 0:02:53]} 12. Ne5 {[%clk 0:02:42]}  c5 {[%clk 0:02:10]} 13. Bf4 {[%clk 0:02:23]}  Nbc6 {[%clk 0:01:56]} 14. Nb5 {[%clk 0:01:41]}  Bb8 {[%clk 0:01:22]} 15. Nxc6 {[%clk 0:01:27]}  bxc6 {[%clk 0:01:22]} 16. Bxb8 {[%clk 0:01:15]}  Rxb8 {[%clk 0:01:21]} 17. Na3 {[%clk 0:01:06]}  cxd4 {[%clk 0:01:19]} 18. Qd2 {[%clk 0:01:01]}  Qb6 {[%clk 0:00:53]} 19. Bb3 {[%clk 0:00:59]}  Rfd8 {[%clk 0:00:43]} 20. Rac1 {[%clk 0:00:57]}  Nd5 {[%clk 0:00:34]} 21. Nc4 {[%clk 0:00:52]}  Qb4 {[%clk 0:00:33]} 22. Rfd1 {[%clk 0:00:47]}  Qxd2 {[%clk 0:00:24]} 23. Rxd2 {[%clk 0:00:47]}  Nf4 {[%clk 0:00:25]} 24. Ne5 {[%clk 0:00:45]}  Re8 {[%clk 0:00:22]} 25. Nxc6 {[%clk 0:00:34]}  Ra8 {[%clk 0:00:20]} 26. Nxd4 {[%clk 0:00:27]}  Rad8 {[%clk 0:00:20]} 27. Kh2 {[%clk 0:00:22]}  Nd3 {[%clk 0:00:17]} 28. Rc4 {[%clk 0:00:19]}  Ne5 {[%clk 0:00:15]} 29. Ra4 {[%clk 0:00:16]}  Be4 {[%clk 0:00:14]} 30. f4 {[%clk 0:00:15]}  Nc6 {[%clk 0:00:10]} 31. Kg3 {[%clk 0:00:12]}  h5 {[%clk 0:00:10]} 32. gxh5 {[%clk 0:00:11]}  Rd6 {[%clk 0:00:09]} 33. Ra6 {[%clk 0:00:08]}  Red8 {[%clk 0:00:09]} 34. Nxc6 {[%clk 0:00:05]}  Rxd2 {[%clk 0:00:06]} 35. Rxa7 {[%clk 0:00:05]}  Bxc6 {[%clk 0:00:05]} 36. Rxf7 {[%clk 0:00:04]}  Kh8 {[%clk 0:00:05]} 37. h6 {[%clk 0:00:04]}  gxh6 {[%clk 0:00:05]} 38. Rf6 {[%clk 0:00:05]}  Be4 {[%clk 0:00:04]} 39. Rxh6+ {[%clk 0:00:05]}  Kg7 {[%clk 0:00:04]} 40. Rb6 {[%clk 0:00:05]}  Rg2+ {[%clk 0:00:04]} 41. Kh4 {[%clk 0:00:05]}  Rh8+ {[%clk 0:00:05]} 0-1


[Site "https://www.chess.com"]

[Event "Titled Tuesday Blitz April 11 Early 2023"]
[White "Ingebretsen, Jens E"]
[Black "Francisco Guecamburu, Candela Be"]
[WhiteFideId "1522965"]
[BlackFideId "160911"]
[WhiteElo "2213"]
[BlackElo "2326"]
[Result "0-1"]
[Round "11"]
[TimeControl "180+2"]
[Date "2023.04.11"]
[WhiteClock "0:01:41"]
[BlackClock "0:00:08"]

1. d4 {[%clk 0:03:00]}  Nf6 {[%clk 0:02:59]} 2. Nf3 {[%clk 0:03:01]}  d5 {[%clk 0:02:59]} 3. c4 {[%clk 0:03:02]}  e6 {[%clk 0:02:58]} 4. Nc3 {[%clk 0:03:03]}  c6 {[%clk 0:02:58]} 5. Bf4 {[%clk 0:03:03]}  Be7 {[%clk 0:02:49]} 6. e3 {[%clk 0:03:03]}  Nh5 {[%clk 0:02:49]} 7. Bg3 {[%clk 0:03:03]}  Nxg3 {[%clk 0:02:46]} 8. hxg3 {[%clk 0:03:03]}  Nd7 {[%clk 0:02:42]} 9. Bd3 {[%clk 0:03:03]}  Nf6 {[%clk 0:02:42]} 10. Qc2 {[%clk 0:03:02]}  h6 {[%clk 0:02:41]} 11. e4 {[%clk 0:02:55]}  dxe4 {[%clk 0:02:32]} 12. Nxe4 {[%clk 0:02:56]}  Bb4+ {[%clk 0:02:31]} 13. Nc3 {[%clk 0:02:54]}  Qa5 {[%clk 0:02:20]} 14. a3 {[%clk 0:02:50]}  O-O {[%clk 0:02:18]} 15. O-O-O {[%clk 0:02:42]}  Bxc3 {[%clk 0:02:14]} 16. Qxc3 {[%clk 0:02:43]}  Qxc3+ {[%clk 0:02:13]} 17. bxc3 {[%clk 0:02:44]}  c5 {[%clk 0:02:09]} 18. Ne5 {[%clk 0:02:43]}  cxd4 {[%clk 0:02:02]} 19. cxd4 {[%clk 0:02:44]}  Nd7 {[%clk 0:01:55]} 20. Nf3 {[%clk 0:02:40]}  b6 {[%clk 0:01:52]} 21. g4 {[%clk 0:02:40]}  Bb7 {[%clk 0:01:51]} 22. g5 {[%clk 0:02:40]}  Bxf3 {[%clk 0:01:35]} 23. gxf3 {[%clk 0:02:40]}  Rfc8 {[%clk 0:01:34]} 24. gxh6 {[%clk 0:02:39]}  g6 {[%clk 0:01:34]} 25. Kb2 {[%clk 0:02:31]}  Kh7 {[%clk 0:01:31]} 26. Kb3 {[%clk 0:02:29]}  Rc7 {[%clk 0:01:26]} 27. f4 {[%clk 0:02:27]}  Rac8 {[%clk 0:01:25]} 28. Rde1 {[%clk 0:02:27]}  Nf6 {[%clk 0:01:22]} 29. Re5 {[%clk 0:02:24]}  Ng4 {[%clk 0:01:20]} 30. Re2 {[%clk 0:02:22]}  Nxh6 {[%clk 0:01:16]} 31. f3 {[%clk 0:02:22]}  Kg7 {[%clk 0:01:16]} 32. Reh2 {[%clk 0:02:22]}  Nf5 {[%clk 0:01:15]} 33. Rh7+ {[%clk 0:02:22]}  Kf6 {[%clk 0:01:16]} 34. Bxf5 {[%clk 0:02:18]}  Kxf5 {[%clk 0:01:11]} 35. c5 {[%clk 0:02:16]}  bxc5 {[%clk 0:01:11]} 36. dxc5 {[%clk 0:02:16]}  Kxf4 {[%clk 0:01:09]} 37. c6 {[%clk 0:02:15]}  Kf5 {[%clk 0:01:01]} 38. Rc1 {[%clk 0:02:12]}  Kf6 {[%clk 0:01:01]} 39. Rc4 {[%clk 0:02:05]}  e5 {[%clk 0:00:58]} 40. f4 {[%clk 0:02:03]}  exf4 {[%clk 0:00:48]} 41. Rxf4+ {[%clk 0:02:03]}  Ke6 {[%clk 0:00:48]} 42. Rg7 {[%clk 0:02:04]}  Rb8+ {[%clk 0:00:44]} 43. Ka4 {[%clk 0:02:04]}  Rb6 {[%clk 0:00:41]} 44. Ka5 {[%clk 0:01:55]}  Rbxc6 {[%clk 0:00:38]} 45. a4 {[%clk 0:01:56]}  Rb6 {[%clk 0:00:36]} 46. Rb4 {[%clk 0:01:50]}  Rxb4 {[%clk 0:00:31]} 47. Kxb4 {[%clk 0:01:50]}  Kf6 {[%clk 0:00:23]} 48. Rg8 {[%clk 0:01:50]}  g5 {[%clk 0:00:22]} 49. a5 {[%clk 0:01:51]}  Kf5 {[%clk 0:00:20]} 50. a6 {[%clk 0:01:52]}  g4 {[%clk 0:00:17]} 51. Rb8 {[%clk 0:01:43]}  Rc6 {[%clk 0:00:12]} 52. Kb5 {[%clk 0:01:42]}  Rf6 {[%clk 0:00:10]} 53. Rb7 {[%clk 0:01:43]}  g3 {[%clk 0:00:10]} 54. Rb8 {[%clk 0:01:42]}  g2 {[%clk 0:00:09]} 55. Rg8 {[%clk 0:01:42]}  Rg6 {[%clk 0:00:10]} 56. Rf8 {[%clk 0:01:42]}  g1=Q {[%clk 0:00:09]} 57. Rxf7+ {[%clk 0:01:42]}  Ke6 {[%clk 0:00:08]} 58. Rf8 {[%clk 0:01:41]}  Rg5+ {[%clk 0:00:08]} 59. Kc6 {[%clk 0:01:41]}  Qb6# {[%clk 0:00:08]} 0-1


[Site "https://www.chess.com"]

[Event "Titled Tuesday Blitz April 11 Early 2023"]
[White "Yelisieiev, Yevhenii"]
[Black "EREBUNI91"]
[WhiteFideId "14139642"]
[WhiteElo "2425"]
[BlackElo "2672"]
[Result "1/2-1/2"]
[Round "11"]
[TimeControl "180+2"]
[Date "2023.04.11"]
[WhiteClock "0:00:39"]
[BlackClock "0:01:06"]

1. d4 {[%clk 0:03:00]}  Nf6 {[%clk 0:02:58]} 2. Nf3 {[%clk 0:03:01]}  e6 {[%clk 0:02:59]} 3. c4 {[%clk 0:03:01]}  d5 {[%clk 0:02:59]} 4. g3 {[%clk 0:03:00]}  Be7 {[%clk 0:02:59]} 5. Bg2 {[%clk 0:03:01]}  O-O {[%clk 0:03:00]} 6. O-O {[%clk 0:03:01]}  dxc4 {[%clk 0:03:01]} 7. Nbd2 {[%clk 0:02:54]}  Bd7 {[%clk 0:02:54]} 8. Nxc4 {[%clk 0:02:50]}  Bc6 {[%clk 0:02:54]} 9. Nce5 {[%clk 0:02:44]}  Nfd7 {[%clk 0:02:52]} 10. Nxc6 {[%clk 0:02:42]}  Nxc6 {[%clk 0:02:52]} 11. a3 {[%clk 0:02:37]}  Nf6 {[%clk 0:02:51]} 12. b4 {[%clk 0:02:37]}  a5 {[%clk 0:02:49]} 13. b5 {[%clk 0:02:37]}  Na7 {[%clk 0:02:50]} 14. a4 {[%clk 0:02:36]}  c6 {[%clk 0:02:51]} 15. Ne5 {[%clk 0:02:30]}  Nd5 {[%clk 0:02:49]} 16. bxc6 {[%clk 0:02:24]}  Nxc6 {[%clk 0:02:50]} 17. Nxc6 {[%clk 0:02:24]}  bxc6 {[%clk 0:02:51]} 18. Ba3 {[%clk 0:02:22]}  Nb4 {[%clk 0:02:50]} 19. Rc1 {[%clk 0:02:19]}  Rc8 {[%clk 0:02:47]} 20. Bxb4 {[%clk 0:02:07]}  Bxb4 {[%clk 0:02:48]} 21. Bxc6 {[%clk 0:02:06]}  Qd6 {[%clk 0:02:47]} 22. Bf3 {[%clk 0:02:04]}  Rxc1 {[%clk 0:02:45]} 23. Qxc1 {[%clk 0:02:03]}  Qxd4 {[%clk 0:02:45]} 24. Rd1 {[%clk 0:02:02]}  Qf6 {[%clk 0:02:43]} 25. Qc6 {[%clk 0:01:57]}  g6 {[%clk 0:02:42]} 26. h4 {[%clk 0:01:55]}  h5 {[%clk 0:02:42]} 27. Kg2 {[%clk 0:01:55]}  Kg7 {[%clk 0:02:42]} 28. Rd7 {[%clk 0:01:54]}  Rd8 {[%clk 0:02:38]} 29. Qc7 {[%clk 0:01:40]}  Rxd7 {[%clk 0:02:35]} 30. Qxd7 {[%clk 0:01:41]}  Qa1 {[%clk 0:02:29]} 31. Bc6 {[%clk 0:01:34]}  Qe1 {[%clk 0:02:24]} 32. Qd4+ {[%clk 0:01:31]}  Kg8 {[%clk 0:02:21]} 33. Qd8+ {[%clk 0:01:29]}  Bf8 {[%clk 0:02:20]} 34. Be8 {[%clk 0:01:12]}  Qxe2 {[%clk 0:02:13]} 35. Qf6 {[%clk 0:01:12]}  Qe4+ {[%clk 0:02:08]} 36. Qf3 {[%clk 0:01:00]}  Qxf3+ {[%clk 0:02:01]} 37. Kxf3 {[%clk 0:01:01]}  Bc5 {[%clk 0:02:01]} 38. Bb5 {[%clk 0:01:00]}  f6 {[%clk 0:02:01]} 39. g4 {[%clk 0:00:59]}  Kf7 {[%clk 0:02:02]} 40. gxh5 {[%clk 0:00:59]}  gxh5 {[%clk 0:02:02]} 41. Be2 {[%clk 0:00:59]}  Kg6 {[%clk 0:02:01]} 42. Kg3 {[%clk 0:00:59]}  Bd6+ {[%clk 0:02:00]} 43. Kf3 {[%clk 0:00:55]}  f5 {[%clk 0:01:55]} 44. Kg2 {[%clk 0:00:53]}  e5 {[%clk 0:01:51]} 45. Bb5 {[%clk 0:00:53]}  Bc5 {[%clk 0:01:52]} 46. Be8+ {[%clk 0:00:53]}  Kh6 {[%clk 0:01:52]} 47. Kf3 {[%clk 0:00:54]}  Be7 {[%clk 0:01:47]} 48. Bd7 {[%clk 0:00:50]}  Bxh4 {[%clk 0:01:12]} 49. Bxf5 {[%clk 0:00:49]}  Be7 {[%clk 0:01:11]} 50. Be4 {[%clk 0:00:44]}  Kg5 {[%clk 0:01:11]} 51. Kg3 {[%clk 0:00:44]}  Bc5 {[%clk 0:01:09]} 52. f3 {[%clk 0:00:44]}  Bb4 {[%clk 0:01:08]} 53. Kh3 {[%clk 0:00:44]}  Be1 {[%clk 0:01:08]} 54. Bc6 {[%clk 0:00:43]}  Kf4 {[%clk 0:01:09]} 55. Bb7 {[%clk 0:00:43]}  Ke3 {[%clk 0:01:07]} 56. Ba8 {[%clk 0:00:43]}  Kd4 {[%clk 0:01:08]} 57. Be4 {[%clk 0:00:43]}  Kc4 {[%clk 0:01:08]} 58. Bc6 {[%clk 0:00:40]}  Kc5 {[%clk 0:01:08]} 59. Bb5 {[%clk 0:00:40]}  Kd4 {[%clk 0:01:08]} 60. Bc6 {[%clk 0:00:40]}  h4 {[%clk 0:01:08]} 61. Kg4 {[%clk 0:00:39]}  Bg3 {[%clk 0:01:08]} 62. Bb5 {[%clk 0:00:38]}  Ke3 {[%clk 0:01:08]} 63. Bc6 {[%clk 0:00:38]}  Kf2 {[%clk 0:01:09]} 64. Kh3 {[%clk 0:00:39]}  Ke3 {[%clk 0:01:07]} 65. Be4 {[%clk 0:00:38]}  Kf4 {[%clk 0:01:07]} 66. Ba8 {[%clk 0:00:39]}  Ke3 {[%clk 0:01:06]} 1/2-1/2


[Site "https://www.chess.com"]

[Event "Titled Tuesday Blitz April 11 Early 2023"]
[White "Aldokhin, Ivan"]
[Black "Borrmann, Laurenz"]
[WhiteFideId "24115720"]
[BlackFideId "312187930"]
[WhiteElo "2322"]
[BlackElo "2312"]
[Result "0-1"]
[Round "11"]
[TimeControl "180+2"]
[Date "2023.04.11"]
[WhiteClock "0:00:03"]
[BlackClock "0:00:05"]

1. e4 {[%clk 0:03:00]}  c5 {[%clk 0:02:55]} 2. Nf3 {[%clk 0:03:01]}  e6 {[%clk 0:02:56]} 3. d4 {[%clk 0:03:02]}  cxd4 {[%clk 0:02:55]} 4. Nxd4 {[%clk 0:03:03]}  a6 {[%clk 0:02:55]} 5. Nc3 {[%clk 0:03:03]}  Qc7 {[%clk 0:02:54]} 6. Bd3 {[%clk 0:03:03]}  Nc6 {[%clk 0:02:53]} 7. Nxc6 {[%clk 0:03:03]}  bxc6 {[%clk 0:02:53]} 8. O-O {[%clk 0:03:03]}  d5 {[%clk 0:02:54]} 9. Re1 {[%clk 0:02:55]}  Nf6 {[%clk 0:02:50]} 10. Bg5 {[%clk 0:02:54]}  Be7 {[%clk 0:02:47]} 11. e5 {[%clk 0:02:40]}  Ng8 {[%clk 0:02:38]} 12. Bf4 {[%clk 0:02:40]}  g5 {[%clk 0:02:36]} 13. Bd2 {[%clk 0:02:35]}  h5 {[%clk 0:02:34]} 14. Na4 {[%clk 0:02:32]}  c5 {[%clk 0:02:29]} 15. c4 {[%clk 0:02:31]}  d4 {[%clk 0:02:26]} 16. b4 {[%clk 0:01:43]}  cxb4 {[%clk 0:02:19]} 17. c5 {[%clk 0:01:43]}  a5 {[%clk 0:02:06]} 18. Nb6 {[%clk 0:01:21]}  Rb8 {[%clk 0:01:50]} 19. Qa4+ {[%clk 0:01:15]}  Kf8 {[%clk 0:01:38]} 20. Nxc8 {[%clk 0:00:48]}  Rxc8 {[%clk 0:01:34]} 21. Rac1 {[%clk 0:00:46]}  Nh6 {[%clk 0:01:29]} 22. c6 {[%clk 0:00:41]}  Ng4 {[%clk 0:01:26]} 23. a3 {[%clk 0:00:22]}  Nxe5 {[%clk 0:01:13]} 24. Ba6 {[%clk 0:00:22]}  Rb8 {[%clk 0:00:52]} 25. Rxe5 {[%clk 0:00:21]}  Qxe5 {[%clk 0:00:49]} 26. c7 {[%clk 0:00:21]}  Kg7 {[%clk 0:00:47]} 27. cxb8=Q {[%clk 0:00:18]}  Rxb8 {[%clk 0:00:48]} 28. axb4 {[%clk 0:00:17]}  axb4 {[%clk 0:00:48]} 29. Qb3 {[%clk 0:00:15]}  Bd6 {[%clk 0:00:46]} 30. g3 {[%clk 0:00:15]}  h4 {[%clk 0:00:41]} 31. Bf1 {[%clk 0:00:13]}  hxg3 {[%clk 0:00:41]} 32. hxg3 {[%clk 0:00:13]}  Rh8 {[%clk 0:00:39]} 33. Bxb4 {[%clk 0:00:08]}  Bb8 {[%clk 0:00:28]} 34. Bg2 {[%clk 0:00:06]}  Qf5 {[%clk 0:00:26]} 35. Rd1 {[%clk 0:00:04]}  Ba7 {[%clk 0:00:25]} 36. Qd3 {[%clk 0:00:05]}  Qf6 {[%clk 0:00:24]} 37. Bd2 {[%clk 0:00:04]}  e5 {[%clk 0:00:23]} 38. Re1 {[%clk 0:00:05]}  Rc8 {[%clk 0:00:20]} 39. g4 {[%clk 0:00:05]}  Bb8 {[%clk 0:00:19]} 40. Be4 {[%clk 0:00:05]}  Rd8 {[%clk 0:00:17]} 41. Kg2 {[%clk 0:00:05]}  Rh8 {[%clk 0:00:17]} 42. Qg3 {[%clk 0:00:02]}  Qe6 {[%clk 0:00:16]} 43. Rh1 {[%clk 0:00:02]}  Rxh1 {[%clk 0:00:14]} 44. Kxh1 {[%clk 0:00:03]}  Qc4 {[%clk 0:00:11]} 45. Kg2 {[%clk 0:00:02]}  Qe2 {[%clk 0:00:10]} 46. Qd3 {[%clk 0:00:01]}  Qxg4+ {[%clk 0:00:11]} 47. Kf1 {[%clk 0:00:02]}  Qd1+ {[%clk 0:00:10]} 48. Kg2 {[%clk 0:00:02]}  Qg4+ {[%clk 0:00:09]} 49. Kh1 {[%clk 0:00:02]}  Qh4+ {[%clk 0:00:09]} 50. Kg1 {[%clk 0:00:02]}  g4 {[%clk 0:00:09]} 51. Bg2 {[%clk 0:00:02]}  Qf6 {[%clk 0:00:07]} 52. Qe4 {[%clk 0:00:02]}  Qg6 {[%clk 0:00:06]} 53. Qxg6+ {[%clk 0:00:02]}  Kxg6 {[%clk 0:00:07]} 54. Bc6 {[%clk 0:00:03]}  f5 {[%clk 0:00:07]} 55. Kg2 {[%clk 0:00:03]}  Kf6 {[%clk 0:00:08]} 56. Bd7 {[%clk 0:00:03]}  Bd6 {[%clk 0:00:07]} 57. Ba5 {[%clk 0:00:03]}  e4 {[%clk 0:00:06]} 58. Bd8+ {[%clk 0:00:03]}  Ke5 {[%clk 0:00:06]} 59. Bb6 {[%clk 0:00:03]}  d3 {[%clk 0:00:06]} 60. Kf1 {[%clk 0:00:04]}  Be7 {[%clk 0:00:03]} 61. Bc8 {[%clk 0:00:04]}  Bd6 {[%clk 0:00:02]} 62. Ba7 {[%clk 0:00:04]}  f4 {[%clk 0:00:03]} 63. Bxg4 {[%clk 0:00:03]}  Bb4 {[%clk 0:00:03]} 64. Bh5 {[%clk 0:00:02]}  Bc3 {[%clk 0:00:03]} 65. Bb6 {[%clk 0:00:02]}  Kf5 {[%clk 0:00:02]} 66. Bc7 {[%clk 0:00:02]}  Be5 {[%clk 0:00:02]} 67. Bd1 {[%clk 0:00:02]}  Bxc7 {[%clk 0:00:02]} 68. Ke1 {[%clk 0:00:01]}  Be5 {[%clk 0:00:03]} 69. Kf1 {[%clk 0:00:01]}  Bd4 {[%clk 0:00:03]} 70. Ke1 {[%clk 0:00:02]}  e3 {[%clk 0:00:04]} 71. fxe3 {[%clk 0:00:02]}  fxe3 {[%clk 0:00:05]} 72. Kf1 {[%clk 0:00:03]}  Kf4 {[%clk 0:00:05]} 73. Bh5 {[%clk 0:00:03]}  Kg3 {[%clk 0:00:04]} 74. Bd1 {[%clk 0:00:03]}  Bc3 {[%clk 0:00:05]} 75. Bh5 {[%clk 0:00:04]}  Kf4 {[%clk 0:00:05]} 76. Bd1 {[%clk 0:00:04]}  Bd2 {[%clk 0:00:05]} 77. Bh5 {[%clk 0:00:04]}  Ke4 {[%clk 0:00:05]} 78. Bg4 {[%clk 0:00:03]}  Kd4 {[%clk 0:00:05]} 79. Bh5 {[%clk 0:00:03]}  Bc1 {[%clk 0:00:05]} 80. Bg4 {[%clk 0:00:03]}  Kc3 {[%clk 0:00:05]} 81. Bh5 {[%clk 0:00:03]}  Kd2 {[%clk 0:00:05]} 0-1


[Site "https://www.chess.com"]

[Event "Titled Tuesday Blitz April 11 Early 2023"]
[White "Deng, Henry"]
[Black "Petrov, Martin"]
[WhiteFideId "30965454"]
[BlackFideId "2911086"]
[WhiteElo "2538"]
[BlackElo "2430"]
[Result "1/2-1/2"]
[Round "11"]
[TimeControl "180+2"]
[Date "2023.04.11"]
[WhiteClock "0:00:49"]
[BlackClock "0:00:03"]

1. e4 {[%clk 0:03:00]}  e5 {[%clk 0:02:59]} 2. Nf3 {[%clk 0:03:00]}  Nc6 {[%clk 0:02:59]} 3. Bc4 {[%clk 0:02:57]}  Nf6 {[%clk 0:02:56]} 4. d3 {[%clk 0:02:56]}  Bc5 {[%clk 0:02:55]} 5. c3 {[%clk 0:02:50]}  O-O {[%clk 0:02:54]} 6. O-O {[%clk 0:02:51]}  d5 {[%clk 0:02:49]} 7. exd5 {[%clk 0:02:49]}  Nxd5 {[%clk 0:02:50]} 8. Nbd2 {[%clk 0:02:39]}  Nb6 {[%clk 0:02:42]} 9. Bb5 {[%clk 0:02:37]}  Ne7 {[%clk 0:02:17]} 10. Nxe5 {[%clk 0:02:32]}  a6 {[%clk 0:02:13]} 11. Bc4 {[%clk 0:02:29]}  Bd6 {[%clk 0:02:03]} 12. d4 {[%clk 0:02:21]}  Bxe5 {[%clk 0:01:49]} 13. dxe5 {[%clk 0:02:22]}  Ng6 {[%clk 0:01:50]} 14. Qe2 {[%clk 0:02:20]}  Re8 {[%clk 0:01:23]} 15. f4 {[%clk 0:02:16]}  Bf5 {[%clk 0:01:23]} 16. Ne4 {[%clk 0:02:15]}  Nxc4 {[%clk 0:00:47]} 17. Qxc4 {[%clk 0:02:13]}  Qd7 {[%clk 0:00:48]} 18. Be3 {[%clk 0:02:05]}  Rad8 {[%clk 0:00:48]} 19. Rf2 {[%clk 0:01:51]}  b5 {[%clk 0:00:47]} 20. Qb4 {[%clk 0:01:36]}  a5 {[%clk 0:00:47]} 21. Qxa5 {[%clk 0:01:27]}  Bxe4 {[%clk 0:00:47]} 22. Raf1 {[%clk 0:01:23]}  Nh4 {[%clk 0:00:46]} 23. Qb4 {[%clk 0:01:19]}  Qc6 {[%clk 0:00:43]} 24. f5 {[%clk 0:01:09]}  Nxf5 {[%clk 0:00:18]} 25. Rxf5 {[%clk 0:01:07]}  Bxf5 {[%clk 0:00:19]} 26. Rxf5 {[%clk 0:01:07]}  Rd1+ {[%clk 0:00:19]} 27. Kf2 {[%clk 0:01:01]}  Qd5 {[%clk 0:00:19]} 28. Qf4 {[%clk 0:00:57]}  g6 {[%clk 0:00:14]} 29. Rf6 {[%clk 0:00:53]}  Rxe5 {[%clk 0:00:14]} 30. Bd4 {[%clk 0:00:54]}  Rf5 {[%clk 0:00:10]} 31. Rxf5 {[%clk 0:00:54]}  Qxf5 {[%clk 0:00:10]} 32. Qxf5 {[%clk 0:00:54]}  gxf5 {[%clk 0:00:11]} 33. Kf3 {[%clk 0:00:52]}  Rd2 {[%clk 0:00:11]} 34. b4 {[%clk 0:00:51]}  Rxa2 {[%clk 0:00:10]} 35. h3 {[%clk 0:00:51]}  Kf8 {[%clk 0:00:09]} 36. g3 {[%clk 0:00:51]}  Ke7 {[%clk 0:00:09]} 37. Kf4 {[%clk 0:00:52]}  Ke6 {[%clk 0:00:10]} 38. Be5 {[%clk 0:00:52]}  Rf2+ {[%clk 0:00:09]} 39. Ke3 {[%clk 0:00:52]}  Rc2 {[%clk 0:00:08]} 40. Bd4 {[%clk 0:00:51]}  h5 {[%clk 0:00:07]} 41. Kf4 {[%clk 0:00:51]}  Rh2 {[%clk 0:00:05]} 42. h4 {[%clk 0:00:51]}  f6 {[%clk 0:00:05]} 43. Bc5 {[%clk 0:00:49]}  c6 {[%clk 0:00:05]} 44. Bd4 {[%clk 0:00:49]}  Re2 {[%clk 0:00:06]} 45. Kf3 {[%clk 0:00:50]}  Re4 {[%clk 0:00:06]} 46. Bb6 {[%clk 0:00:48]}  Kd5 {[%clk 0:00:06]} 47. Bd8 {[%clk 0:00:49]}  Ke5 {[%clk 0:00:04]} 48. Bc7+ {[%clk 0:00:48]}  Ke6 {[%clk 0:00:05]} 49. Bb6 {[%clk 0:00:48]}  Kd5 {[%clk 0:00:05]} 50. Bd8 {[%clk 0:00:49]}  Ke6 {[%clk 0:00:03]} 51. Bb6 {[%clk 0:00:49]} 1/2-1/2


[Site "https://www.chess.com"]

[Event "Titled Tuesday Blitz April 11 Early 2023"]
[White "Grot, Blazej"]
[Black "Zarubitski, Viachaslau"]
[WhiteFideId "21835845"]
[BlackFideId "13509373"]
[WhiteElo "1823"]
[BlackElo "2284"]
[Result "1-0"]
[Round "11"]
[TimeControl "180+2"]
[Date "2023.04.11"]
[WhiteClock "0:01:23"]
[BlackClock "0:00:32"]

1. e4 {[%clk 0:03:00]}  e5 {[%clk 0:02:55]} 2. Nf3 {[%clk 0:02:59]}  Nf6 {[%clk 0:02:55]} 3. d4 {[%clk 0:02:54]}  Nxe4 {[%clk 0:02:55]} 4. Bd3 {[%clk 0:02:54]}  Nc6 {[%clk 0:02:55]} 5. Nxe5 {[%clk 0:02:46]}  Nxe5 {[%clk 0:02:54]} 6. dxe5 {[%clk 0:02:46]}  d5 {[%clk 0:02:53]} 7. exd6 {[%clk 0:02:42]}  Nxd6 {[%clk 0:02:52]} 8. O-O {[%clk 0:02:39]}  Be7 {[%clk 0:02:49]} 9. Re1 {[%clk 0:02:38]}  O-O {[%clk 0:02:46]} 10. Nc3 {[%clk 0:02:34]}  Bf5 {[%clk 0:02:39]} 11. Bxf5 {[%clk 0:02:28]}  Nxf5 {[%clk 0:02:39]} 12. Qg4 {[%clk 0:02:27]}  g6 {[%clk 0:02:03]} 13. Be3 {[%clk 0:02:22]}  Bd6 {[%clk 0:01:35]} 14. Rad1 {[%clk 0:02:16]}  Re8 {[%clk 0:01:33]} 15. Bg5 {[%clk 0:02:11]}  Qd7 {[%clk 0:01:23]} 16. Ne4 {[%clk 0:02:07]}  Kg7 {[%clk 0:00:59]} 17. Bf6+ {[%clk 0:02:07]}  Kf8 {[%clk 0:00:58]} 18. Bc3 {[%clk 0:02:02]}  Qa4 {[%clk 0:00:46]} 19. Nf6 {[%clk 0:02:02]}  Qxg4 {[%clk 0:00:44]} 20. Nxh7+ {[%clk 0:01:54]}  Kg8 {[%clk 0:00:43]} 21. Nf6+ {[%clk 0:01:54]}  Kf8 {[%clk 0:00:44]} 22. Nxg4 {[%clk 0:01:49]}  Rxe1+ {[%clk 0:00:40]} 23. Rxe1 {[%clk 0:01:50]}  Rd8 {[%clk 0:00:40]} 24. g3 {[%clk 0:01:42]}  Bc5 {[%clk 0:00:39]} 25. Kg2 {[%clk 0:01:37]}  Bd4 {[%clk 0:00:37]} 26. Rd1 {[%clk 0:01:33]}  Ke7 {[%clk 0:00:33]} 27. Bxd4 {[%clk 0:01:29]}  Ke8 {[%clk 0:00:32]} 28. Re1+ {[%clk 0:01:23]} 1-0


[Site "https://www.chess.com"]

[Event "Titled Tuesday Blitz April 11 Early 2023"]
[White "Dronavalli, Harika"]
[Black "Gogolev, Artem"]
[WhiteFideId "5015197"]
[BlackFideId "4116615"]
[WhiteElo "2432"]
[BlackElo "2182"]
[Result "1-0"]
[Round "11"]
[TimeControl "180+2"]
[Date "2023.04.11"]
[WhiteClock "0:01:18"]
[BlackClock "0:00:31"]

1. e4 {[%clk 0:03:00]}  c6 {[%clk 0:02:53]} 2. Nf3 {[%clk 0:02:59]}  d5 {[%clk 0:02:54]} 3. exd5 {[%clk 0:02:59]}  cxd5 {[%clk 0:02:55]} 4. Ne5 {[%clk 0:03:00]}  Nc6 {[%clk 0:02:49]} 5. Bb5 {[%clk 0:02:59]}  Bd7 {[%clk 0:02:49]} 6. Nxd7 {[%clk 0:02:59]}  Qxd7 {[%clk 0:02:50]} 7. d4 {[%clk 0:02:59]}  e6 {[%clk 0:02:50]} 8. O-O {[%clk 0:02:59]}  Bd6 {[%clk 0:02:46]} 9. Re1 {[%clk 0:02:59]}  Nge7 {[%clk 0:02:46]} 10. c3 {[%clk 0:02:58]}  O-O {[%clk 0:02:46]} 11. Nd2 {[%clk 0:02:55]}  a6 {[%clk 0:02:45]} 12. Bf1 {[%clk 0:02:55]}  b5 {[%clk 0:02:44]} 13. a3 {[%clk 0:02:55]}  Qc7 {[%clk 0:02:34]} 14. g3 {[%clk 0:02:48]}  Rab8 {[%clk 0:02:29]} 15. b4 {[%clk 0:02:46]}  e5 {[%clk 0:02:17]} 16. dxe5 {[%clk 0:02:44]}  Bxe5 {[%clk 0:02:14]} 17. Bb2 {[%clk 0:02:42]}  a5 {[%clk 0:01:53]} 18. Nf3 {[%clk 0:02:36]}  Bf6 {[%clk 0:01:48]} 19. Qd2 {[%clk 0:02:27]}  Rfd8 {[%clk 0:01:43]} 20. Rec1 {[%clk 0:02:03]}  Ne5 {[%clk 0:01:25]} 21. Nxe5 {[%clk 0:01:54]}  Bxe5 {[%clk 0:01:26]} 22. a4 {[%clk 0:01:52]}  bxa4 {[%clk 0:01:10]} 23. Rxa4 {[%clk 0:01:50]}  axb4 {[%clk 0:00:59]} 24. cxb4 {[%clk 0:01:50]}  Qd7 {[%clk 0:00:54]} 25. Bxe5 {[%clk 0:01:35]}  Qxa4 {[%clk 0:00:54]} 26. Bxb8 {[%clk 0:01:35]}  Rxb8 {[%clk 0:00:55]} 27. Rc7 {[%clk 0:01:35]}  Kf8 {[%clk 0:00:42]} 28. b5 {[%clk 0:01:29]}  d4 {[%clk 0:00:34]} 29. Rd7 {[%clk 0:01:23]}  Nf5 {[%clk 0:00:31]} 30. Qf4 {[%clk 0:01:18]} 1-0


[Site "https://www.chess.com"]